[Event "Titled Tuesday Blitz October 25 Late 2022"]
[White "Vasquez Garrido, Nuremberg"]
[Black "Moaataz, Ayah"]
[WhiteFideId "4432118"]
[BlackFideId "10615873"]
[WhiteElo "2062"]
[BlackElo "1993"]
[Result "0-1"]
[Round "05"]
[TimeControl "180+1"]
[Date "2022.10.26"]
[WhiteClock "0:00:05"]
[BlackClock "0:01:19"]

1. e4 {[%clk 0:03:00]}  c6 {[%clk 0:02:58]} 2. d4 {[%clk 0:02:59]}  d5 {[%clk 0:02:59]} 3. exd5 {[%clk 0:02:59]}  cxd5 {[%clk 0:02:59]} 4. Bd3 {[%clk 0:03:00]}  Nc6 {[%clk 0:02:59]} 5. c3 {[%clk 0:03:00]}  Qc7 {[%clk 0:02:59]} 6. Nf3 {[%clk 0:02:57]}  Bg4 {[%clk 0:02:59]} 7. O-O {[%clk 0:02:52]}  Nf6 {[%clk 0:02:58]} 8. h3 {[%clk 0:02:51]}  Bh5 {[%clk 0:02:57]} 9. Bg5 {[%clk 0:02:50]}  e6 {[%clk 0:02:57]} 10. Nbd2 {[%clk 0:02:50]}  Bd6 {[%clk 0:02:57]} 11. Re1 {[%clk 0:02:47]}  Rb8 {[%clk 0:02:57]} 12. Qa4 {[%clk 0:02:42]}  O-O {[%clk 0:02:53]} 13. Bxf6 {[%clk 0:02:12]}  gxf6 {[%clk 0:02:53]} 14. Kh1 {[%clk 0:02:11]}  Bg6 {[%clk 0:02:53]} 15. Qc2 {[%clk 0:02:05]}  Nb4 {[%clk 0:02:49]} 16. cxb4 {[%clk 0:02:02]}  Qxc2 {[%clk 0:02:50]} 17. Bxc2 {[%clk 0:02:02]}  Bxc2 {[%clk 0:02:51]} 18. Rac1 {[%clk 0:01:59]}  Bd3 {[%clk 0:02:35]} 19. a3 {[%clk 0:01:56]}  Rbc8 {[%clk 0:02:34]} 20. Nb3 {[%clk 0:01:47]}  b6 {[%clk 0:02:31]} 21. Rc3 {[%clk 0:01:22]}  Ba6 {[%clk 0:02:18]} 22. Rec1 {[%clk 0:01:21]}  Bf4 {[%clk 0:02:16]} 23. R1c2 {[%clk 0:01:18]}  Kg7 {[%clk 0:02:12]} 24. g3 {[%clk 0:01:18]}  Bd6 {[%clk 0:02:08]} 25. Kg2 {[%clk 0:01:12]}  Rc4 {[%clk 0:02:01]} 26. Nfd2 {[%clk 0:01:11]}  Rcc8 {[%clk 0:02:00]} 27. f4 {[%clk 0:01:07]}  e5 {[%clk 0:02:00]} 28. dxe5 {[%clk 0:01:06]}  fxe5 {[%clk 0:02:00]} 29. Rxc8 {[%clk 0:00:32]}  Bxc8 {[%clk 0:01:36]} 30. g4 {[%clk 0:00:26]}  exf4 {[%clk 0:01:34]} 31. Kf3 {[%clk 0:00:25]}  Be5 {[%clk 0:01:32]} 32. Ke2 {[%clk 0:00:17]}  Ba6+ {[%clk 0:01:28]} 33. Kf2 {[%clk 0:00:14]}  Bd3 {[%clk 0:01:26]} 34. Rc6 {[%clk 0:00:13]}  Bxb2 {[%clk 0:01:26]} 35. Nf3 {[%clk 0:00:11]}  Bxa3 {[%clk 0:01:23]} 36. Rd6 {[%clk 0:00:10]}  Be4 {[%clk 0:01:21]} 37. Nbd4 {[%clk 0:00:07]}  Bxb4 {[%clk 0:01:20]} 38. Rd7 {[%clk 0:00:08]}  Bc5 {[%clk 0:01:19]} 39. h4 {[%clk 0:00:07]}  Bxf3 {[%clk 0:01:19]} 40. Kxf3 {[%clk 0:00:05]}  Bxd4 {[%clk 0:01:19]} 0-1


[Site "https://www.chess.com"]

[Event "Titled Tuesday Blitz October 25 Late 2022"]
[White "Vovk, Orest"]
[Black "Sjugirov, Sanan"]
[WhiteFideId "14113490"]
[BlackFideId "4189302"]
[WhiteElo "2215"]
[BlackElo "2609"]
[Result "0-1"]
[Round "05"]
[TimeControl "180+1"]
[Date "2022.10.26"]
[WhiteClock "0:00:05"]
[BlackClock "0:00:04"]

1. h4 {[%clk 0:02:55]}  d5 {[%clk 0:02:33]} 2. h5 {[%clk 0:02:56]}  h6 {[%clk 0:02:29]} 3. e4 {[%clk 0:02:55]}  dxe4 {[%clk 0:02:27]} 4. Nc3 {[%clk 0:02:55]}  Nf6 {[%clk 0:02:27]} 5. Qe2 {[%clk 0:02:54]}  c6 {[%clk 0:01:57]} 6. Nxe4 {[%clk 0:02:53]}  Nxe4 {[%clk 0:01:58]} 7. Qxe4 {[%clk 0:02:53]}  Nd7 {[%clk 0:01:59]} 8. Nf3 {[%clk 0:02:51]}  Nf6 {[%clk 0:01:59]} 9. Qf4 {[%clk 0:02:32]}  e6 {[%clk 0:01:57]} 10. d4 {[%clk 0:02:27]}  Bd6 {[%clk 0:01:56]} 11. Qh4 {[%clk 0:02:24]}  b6 {[%clk 0:01:52]} 12. Bd3 {[%clk 0:02:21]}  Bb7 {[%clk 0:01:52]} 13. Bf4 {[%clk 0:02:19]}  Qc7 {[%clk 0:01:49]} 14. Bxd6 {[%clk 0:02:17]}  Qxd6 {[%clk 0:01:49]} 15. O-O-O {[%clk 0:02:16]}  O-O-O {[%clk 0:01:48]} 16. Ne5 {[%clk 0:02:10]}  Qc7 {[%clk 0:01:45]} 17. Qg3 {[%clk 0:02:07]}  Rhg8 {[%clk 0:01:39]} 18. Rh4 {[%clk 0:01:57]}  Qe7 {[%clk 0:00:56]} 19. c3 {[%clk 0:01:38]}  Qc7 {[%clk 0:00:44]} 20. Bc2 {[%clk 0:01:15]}  Rdf8 {[%clk 0:00:43]} 21. Bb3 {[%clk 0:01:00]}  Nd7 {[%clk 0:00:34]} 22. Rg4 {[%clk 0:00:46]}  Nxe5 {[%clk 0:00:14]} 23. dxe5 {[%clk 0:00:44]}  Rd8 {[%clk 0:00:13]} 24. Rxg7 {[%clk 0:00:37]}  Rxd1+ {[%clk 0:00:12]} 25. Bxd1 {[%clk 0:00:37]}  Rd8 {[%clk 0:00:13]} 26. Qf4 {[%clk 0:00:29]}  Qd7 {[%clk 0:00:10]} 27. Bc2 {[%clk 0:00:28]}  Qd5 {[%clk 0:00:09]} 28. b3 {[%clk 0:00:24]}  Rd7 {[%clk 0:00:02]} 29. Rxf7 {[%clk 0:00:21]}  Rxf7 {[%clk 0:00:02]} 30. Qxf7 {[%clk 0:00:22]}  Qxe5 {[%clk 0:00:03]} 31. Kb2 {[%clk 0:00:18]}  Qg5 {[%clk 0:00:01]} 32. Qxe6+ {[%clk 0:00:18]}  Kc7 {[%clk 0:00:02]} 33. Qg6 {[%clk 0:00:16]}  Qf4 {[%clk 0:00:01]} 34. Qg3 {[%clk 0:00:13]}  Qxg3 {[%clk 0:00:01]} 35. fxg3 {[%clk 0:00:14]}  Kd6 {[%clk 0:00:02]} 36. Bf5 {[%clk 0:00:13]}  Ke5 {[%clk 0:00:03]} 37. g4 {[%clk 0:00:13]}  c5 {[%clk 0:00:03]} 38. b4 {[%clk 0:00:13]}  Bxg2 {[%clk 0:00:02]} 39. bxc5 {[%clk 0:00:12]}  bxc5 {[%clk 0:00:03]} 40. Kb3 {[%clk 0:00:12]}  Bd5+ {[%clk 0:00:04]} 41. c4 {[%clk 0:00:08]}  Bf7 {[%clk 0:00:04]} 42. Bc8 {[%clk 0:00:04]}  Be8 {[%clk 0:00:04]} 43. Kc3 {[%clk 0:00:03]}  Bc6 {[%clk 0:00:04]} 44. a3 {[%clk 0:00:03]}  Kf4 {[%clk 0:00:04]} 45. Kb3 {[%clk 0:00:01]}  Be8 {[%clk 0:00:03]} 46. Kc3 {[%clk 0:00:01]}  Ba4 {[%clk 0:00:03]} 47. Kd3 {[%clk 0:00:01]}  Bd1 {[%clk 0:00:03]} 48. Kc3 {[%clk 0:00:01]}  Bxg4 {[%clk 0:00:03]} 49. Bxg4 {[%clk 0:00:01]}  Kxg4 {[%clk 0:00:04]} 50. Kb3 {[%clk 0:00:01]}  Kxh5 {[%clk 0:00:04]} 51. Ka4 {[%clk 0:00:02]}  Kg4 {[%clk 0:00:05]} 52. Kb5 {[%clk 0:00:03]}  h5 {[%clk 0:00:06]} 53. Kxc5 {[%clk 0:00:03]}  h4 {[%clk 0:00:07]} 54. Kd6 {[%clk 0:00:03]}  h3 {[%clk 0:00:08]} 55. c5 {[%clk 0:00:04]}  h2 {[%clk 0:00:08]} 56. c6 {[%clk 0:00:05]}  h1=Q {[%clk 0:00:09]} 57. c7 {[%clk 0:00:05]}  Qb7 {[%clk 0:00:06]} 58. Kd7 {[%clk 0:00:05]}  Kf5 {[%clk 0:00:06]} 59. Kd8 {[%clk 0:00:05]}  Kf6 {[%clk 0:00:04]} 60. c8=Q {[%clk 0:00:05]}  Qe7# {[%clk 0:00:04]} 0-1


[Site "https://www.chess.com"]

[Event "Titled Tuesday Blitz October 25 Late 2022"]
[White "Wiegmann, Sascha"]
[Black "Aggelis, Nikolaos"]
[WhiteFideId "4682041"]
[BlackFideId "4213220"]
[WhiteElo "2292"]
[BlackElo "2187"]
[Result "0-1"]
[Round "05"]
[TimeControl "180+1"]
[Date "2022.10.26"]
[WhiteClock "0:00:10"]
[BlackClock "0:01:13"]

1. Nf3 {[%clk 0:02:59]}  Nf6 {[%clk 0:02:53]} 2. g3 {[%clk 0:02:59]}  g6 {[%clk 0:02:54]} 3. Bg2 {[%clk 0:03:00]}  Bg7 {[%clk 0:02:54]} 4. O-O {[%clk 0:03:01]}  O-O {[%clk 0:02:55]} 5. d4 {[%clk 0:03:01]}  d5 {[%clk 0:02:55]} 6. c4 {[%clk 0:03:02]}  Nc6 {[%clk 0:02:55]} 7. Nc3 {[%clk 0:03:01]}  dxc4 {[%clk 0:02:56]} 8. e4 {[%clk 0:02:03]}  Bg4 {[%clk 0:02:52]} 9. Be3 {[%clk 0:02:02]}  e5 {[%clk 0:02:26]} 10. dxe5 {[%clk 0:01:33]}  Bxf3 {[%clk 0:02:11]} 11. exf6 {[%clk 0:00:46]}  Bxd1 {[%clk 0:02:08]} 12. fxg7 {[%clk 0:00:46]}  Kxg7 {[%clk 0:02:00]} 13. Raxd1 {[%clk 0:00:46]}  Qe7 {[%clk 0:01:44]} 14. Nd5 {[%clk 0:00:45]}  Qe5 {[%clk 0:01:45]} 15. Bf4 {[%clk 0:00:30]}  Qxb2 {[%clk 0:01:44]} 16. Bd2 {[%clk 0:00:29]}  f6 {[%clk 0:01:35]} 17. Bc3 {[%clk 0:00:26]}  Qa3 {[%clk 0:01:25]} 18. Nxf6 {[%clk 0:00:14]}  Qxc3 {[%clk 0:01:23]} 19. Rd7+ {[%clk 0:00:13]}  Kxf6 {[%clk 0:01:16]} 20. f4 {[%clk 0:00:11]}  Qd4+ {[%clk 0:01:14]} 21. Rxd4 {[%clk 0:00:10]}  Nxd4 {[%clk 0:01:15]} 22. e5+ {[%clk 0:00:10]}  Ke7 {[%clk 0:01:13]} 0-1


[Site "https://www.chess.com"]

[Event "Titled Tuesday Blitz October 25 Late 2022"]
[White "Yeletsky, Ivan"]
[Black "Atanasov, Anthony"]
[WhiteFideId "24180327"]
[BlackFideId "2623897"]
[WhiteElo "2391"]
[BlackElo "2048"]
[Result "1-0"]
[Round "05"]
[TimeControl "180+1"]
[Date "2022.10.26"]
[WhiteClock "0:01:40"]
[BlackClock "0:01:08"]

1. Nf3 {[%clk 0:03:00]}  d5 {[%clk 0:02:59]} 2. g3 {[%clk 0:03:00]}  Bf5 {[%clk 0:02:59]} 3. c4 {[%clk 0:03:00]}  Nc6 {[%clk 0:02:58]} 4. cxd5 {[%clk 0:02:59]}  Qxd5 {[%clk 0:02:59]} 5. Nc3 {[%clk 0:02:59]}  Qd7 {[%clk 0:02:59]} 6. d4 {[%clk 0:02:55]}  O-O-O {[%clk 0:02:59]} 7. d5 {[%clk 0:02:52]}  Nb4 {[%clk 0:02:55]} 8. e4 {[%clk 0:02:51]}  Bg4 {[%clk 0:02:41]} 9. Bg2 {[%clk 0:02:39]}  Nf6 {[%clk 0:02:38]} 10. a3 {[%clk 0:02:37]}  Na6 {[%clk 0:02:21]} 11. Qc2 {[%clk 0:02:35]}  e6 {[%clk 0:02:11]} 12. Ne5 {[%clk 0:02:31]}  Qe8 {[%clk 0:02:11]} 13. O-O {[%clk 0:02:30]}  exd5 {[%clk 0:02:08]} 14. Nxg4 {[%clk 0:02:28]}  Nxg4 {[%clk 0:02:09]} 15. exd5 {[%clk 0:02:29]}  Bc5 {[%clk 0:02:04]} 16. b4 {[%clk 0:02:12]}  Bd4 {[%clk 0:01:53]} 17. Bf4 {[%clk 0:02:01]}  Qd7 {[%clk 0:01:40]} 18. Rad1 {[%clk 0:01:58]}  Bb6 {[%clk 0:01:39]} 19. d6 {[%clk 0:01:55]}  c6 {[%clk 0:01:35]} 20. b5 {[%clk 0:01:51]}  cxb5 {[%clk 0:01:32]} 21. Nxb5+ {[%clk 0:01:40]}  Kb8 {[%clk 0:01:28]} 22. Nc7 {[%clk 0:01:41]}  Rc8 {[%clk 0:01:07]} 23. Nxa6+ {[%clk 0:01:39]}  bxa6 {[%clk 0:01:08]} 24. Qe4 {[%clk 0:01:40]} 1-0


[Site "https://www.chess.com"]

[Event "Titled Tuesday Blitz October 25 Late 2022"]
[White "Yuan, Qingyu"]
[Black "Przybylski, Wojciech"]
[WhiteFideId "8609772"]
[BlackFideId "1117599"]
[WhiteElo "2359"]
[BlackElo "2221"]
[Result "1-0"]
[Round "05"]
[TimeControl "180+1"]
[Date "2022.10.26"]
[WhiteClock "0:00:18"]
[BlackClock "0:00:02"]

1. d4 {[%clk 0:02:57]}  Nf6 {[%clk 0:02:45]} 2. Bf4 {[%clk 0:02:56]}  e6 {[%clk 0:02:44]} 3. e3 {[%clk 0:02:52]}  b6 {[%clk 0:02:44]} 4. Qf3 {[%clk 0:02:49]}  Nc6 {[%clk 0:02:40]} 5. Nc3 {[%clk 0:02:40]}  Bb7 {[%clk 0:02:39]} 6. O-O-O {[%clk 0:02:39]}  Be7 {[%clk 0:02:34]} 7. Nge2 {[%clk 0:02:24]}  O-O {[%clk 0:02:30]} 8. g4 {[%clk 0:02:20]}  Na5 {[%clk 0:02:09]} 9. e4 {[%clk 0:02:11]}  Nxe4 {[%clk 0:02:09]} 10. Nxe4 {[%clk 0:02:11]}  f5 {[%clk 0:02:09]} 11. gxf5 {[%clk 0:02:04]}  exf5 {[%clk 0:02:08]} 12. d5 {[%clk 0:02:00]}  fxe4 {[%clk 0:02:03]} 13. Qxe4 {[%clk 0:01:54]}  Ba6 {[%clk 0:01:37]} 14. Rg1 {[%clk 0:01:43]}  Nc4 {[%clk 0:01:29]} 15. Nd4 {[%clk 0:01:17]}  Bf6 {[%clk 0:01:21]} 16. Bxc4 {[%clk 0:01:06]}  Bxc4 {[%clk 0:01:19]} 17. Nf5 {[%clk 0:01:05]}  Ba6 {[%clk 0:01:09]} 18. Nxg7 {[%clk 0:00:48]}  Kh8 {[%clk 0:00:38]} 19. Nh5 {[%clk 0:00:43]}  Re8 {[%clk 0:00:30]} 20. Qf5 {[%clk 0:00:34]}  Bxb2+ {[%clk 0:00:07]} 21. Kxb2 {[%clk 0:00:34]}  Qe7 {[%clk 0:00:07]} 22. Qf6+ {[%clk 0:00:27]}  Qxf6+ {[%clk 0:00:07]} 23. Nxf6 {[%clk 0:00:28]}  Rf8 {[%clk 0:00:08]} 24. Be5 {[%clk 0:00:27]}  d6 {[%clk 0:00:08]} 25. Bc3 {[%clk 0:00:27]}  h6 {[%clk 0:00:06]} 26. Rg6 {[%clk 0:00:22]}  Rf7 {[%clk 0:00:04]} 27. Rdg1 {[%clk 0:00:19]}  Rh7 {[%clk 0:00:02]} 28. Rg8+ {[%clk 0:00:17]}  Rxg8 {[%clk 0:00:02]} 29. Rxg8# {[%clk 0:00:18]} 1-0


[Site "https://www.chess.com"]

[Event "Titled Tuesday Blitz October 25 Late 2022"]
[White "Yurtseven, Melih"]
[Black "Osmak, Yuliia"]
[WhiteFideId "6312160"]
[BlackFideId "14101602"]
[WhiteElo "2218"]
[BlackElo "2328"]
[Result "1-0"]
[Round "05"]
[TimeControl "180+1"]
[Date "2022.10.26"]
[WhiteClock "0:00:15"]
[BlackClock "0:00:02"]

1. Nf3 {[%clk 0:02:48]}  c5 {[%clk 0:02:54]} 2. c4 {[%clk 0:02:40]}  Nc6 {[%clk 0:02:53]} 3. Nc3 {[%clk 0:02:40]}  Nf6 {[%clk 0:02:53]} 4. g3 {[%clk 0:02:40]}  g6 {[%clk 0:02:51]} 5. Bg2 {[%clk 0:02:40]}  Bg7 {[%clk 0:02:52]} 6. d4 {[%clk 0:02:40]}  cxd4 {[%clk 0:02:51]} 7. Nxd4 {[%clk 0:02:41]}  O-O {[%clk 0:02:51]} 8. O-O {[%clk 0:02:41]}  Nxd4 {[%clk 0:02:50]} 9. Qxd4 {[%clk 0:02:41]}  d6 {[%clk 0:02:51]} 10. Qd3 {[%clk 0:02:41]}  a6 {[%clk 0:02:48]} 11. h3 {[%clk 0:02:35]}  Rb8 {[%clk 0:02:45]} 12. Be3 {[%clk 0:02:26]}  Be6 {[%clk 0:02:28]} 13. Rac1 {[%clk 0:02:19]}  Qc8 {[%clk 0:02:26]} 14. Nd5 {[%clk 0:02:18]}  Re8 {[%clk 0:02:21]} 15. Kh2 {[%clk 0:02:17]}  Nd7 {[%clk 0:02:17]} 16. b4 {[%clk 0:01:59]}  h5 {[%clk 0:02:01]} 17. Qd2 {[%clk 0:01:45]}  Ne5 {[%clk 0:01:57]} 18. Nb6 {[%clk 0:01:44]}  Qd8 {[%clk 0:01:54]} 19. a4 {[%clk 0:01:40]}  Nd7 {[%clk 0:01:38]} 20. a5 {[%clk 0:01:18]}  Nxb6 {[%clk 0:01:38]} 21. axb6 {[%clk 0:01:15]}  Qd7 {[%clk 0:01:32]} 22. Rfd1 {[%clk 0:01:13]}  Qa4 {[%clk 0:01:26]} 23. c5 {[%clk 0:01:08]}  Bb3 {[%clk 0:01:13]} 24. Rf1 {[%clk 0:01:04]}  d5 {[%clk 0:01:11]} 25. Bxd5 {[%clk 0:00:33]}  Rbd8 {[%clk 0:00:41]} 26. Bxb3 {[%clk 0:00:31]}  Qxb3 {[%clk 0:00:42]} 27. Qc2 {[%clk 0:00:19]}  Qxb4 {[%clk 0:00:41]} 28. Rb1 {[%clk 0:00:18]}  Qa3 {[%clk 0:00:35]} 29. Qe4 {[%clk 0:00:17]}  Rd7 {[%clk 0:00:27]} 30. Rfd1 {[%clk 0:00:17]}  Red8 {[%clk 0:00:22]} 31. Rxd7 {[%clk 0:00:17]}  Rxd7 {[%clk 0:00:23]} 32. c6 {[%clk 0:00:17]}  bxc6 {[%clk 0:00:17]} 33. b7 {[%clk 0:00:18]}  Rxb7 {[%clk 0:00:10]} 34. Rxb7 {[%clk 0:00:19]}  Bf6 {[%clk 0:00:07]} 35. Qf4 {[%clk 0:00:15]}  Qa2 {[%clk 0:00:04]} 36. Rb8+ {[%clk 0:00:15]}  Kh7 {[%clk 0:00:02]} 37. Qh6# {[%clk 0:00:15]} 1-0


[Site "https://www.chess.com"]

[Event "Titled Tuesday Blitz October 25 Late 2022"]
[White "Zakaryan, David"]
[Black "Iliaguev, Nisim"]
[WhiteFideId "24101923"]
[BlackFideId "2817276"]
[WhiteElo "2409"]
[BlackElo "2264"]
[Result "0-1"]
[Round "05"]
[TimeControl "180+1"]
[Date "2022.10.26"]
[WhiteClock "0:00:20"]
[BlackClock "0:00:23"]

1. Nf3 {[%clk 0:02:54]}  Nf6 {[%clk 0:02:59]} 2. c4 {[%clk 0:02:53]}  c5 {[%clk 0:03:00]} 3. Nc3 {[%clk 0:02:52]}  g6 {[%clk 0:03:00]} 4. e3 {[%clk 0:02:51]}  Bg7 {[%clk 0:03:01]} 5. b3 {[%clk 0:02:42]}  O-O {[%clk 0:03:01]} 6. Bb2 {[%clk 0:02:42]}  d5 {[%clk 0:03:01]} 7. cxd5 {[%clk 0:02:42]}  Nxd5 {[%clk 0:03:02]} 8. Be2 {[%clk 0:02:41]}  Nc6 {[%clk 0:03:02]} 9. O-O {[%clk 0:02:41]}  b6 {[%clk 0:03:02]} 10. a3 {[%clk 0:02:40]}  Bb7 {[%clk 0:03:02]} 11. Qc2 {[%clk 0:02:40]}  Rc8 {[%clk 0:02:56]} 12. Nxd5 {[%clk 0:02:40]}  Qxd5 {[%clk 0:02:57]} 13. Bxg7 {[%clk 0:02:38]}  Kxg7 {[%clk 0:02:58]} 14. Rfd1 {[%clk 0:02:38]}  Rfd8 {[%clk 0:02:58]} 15. Qb2+ {[%clk 0:02:36]}  Kg8 {[%clk 0:02:51]} 16. d3 {[%clk 0:02:27]}  Qd6 {[%clk 0:02:42]} 17. h4 {[%clk 0:02:08]}  Qf6 {[%clk 0:02:42]} 18. Qxf6 {[%clk 0:02:07]}  exf6 {[%clk 0:02:43]} 19. Nd2 {[%clk 0:01:54]}  Kg7 {[%clk 0:02:34]} 20. Nc4 {[%clk 0:01:46]}  Rc7 {[%clk 0:02:29]} 21. Rab1 {[%clk 0:01:44]}  Rcd7 {[%clk 0:02:25]} 22. b4 {[%clk 0:01:39]}  cxb4 {[%clk 0:02:25]} 23. axb4 {[%clk 0:01:37]}  b5 {[%clk 0:02:23]} 24. Na3 {[%clk 0:01:33]}  a6 {[%clk 0:02:22]} 25. d4 {[%clk 0:01:33]}  f5 {[%clk 0:02:20]} 26. g3 {[%clk 0:01:32]}  Ne7 {[%clk 0:02:17]} 27. Rdc1 {[%clk 0:01:29]}  h5 {[%clk 0:02:10]} 28. Rc5 {[%clk 0:01:23]}  f4 {[%clk 0:01:37]} 29. gxf4 {[%clk 0:01:21]}  Nf5 {[%clk 0:01:38]} 30. Nc2 {[%clk 0:01:13]}  Nxh4 {[%clk 0:01:31]} 31. Ne1 {[%clk 0:01:13]}  Nf5 {[%clk 0:01:29]} 32. Rbc1 {[%clk 0:01:08]}  Ne7 {[%clk 0:01:24]} 33. Bf3 {[%clk 0:01:06]}  Bxf3 {[%clk 0:01:22]} 34. Nxf3 {[%clk 0:01:07]}  Nd5 {[%clk 0:01:22]} 35. Ne5 {[%clk 0:01:06]}  Rd6 {[%clk 0:01:19]} 36. Nd3 {[%clk 0:00:55]}  Nb6 {[%clk 0:01:11]} 37. Ne5 {[%clk 0:00:46]}  Nd5 {[%clk 0:01:10]} 38. Nd3 {[%clk 0:00:44]}  f6 {[%clk 0:01:10]} 39. Rc6 {[%clk 0:00:41]}  Kh6 {[%clk 0:01:08]} 40. Rxd6 {[%clk 0:00:38]}  Rxd6 {[%clk 0:01:09]} 41. Rc8 {[%clk 0:00:33]}  Kg7 {[%clk 0:01:06]} 42. Kg2 {[%clk 0:00:32]}  Nb6 {[%clk 0:00:56]} 43. Rc7+ {[%clk 0:00:30]}  Kh6 {[%clk 0:00:56]} 44. Kf3 {[%clk 0:00:28]}  g5 {[%clk 0:00:53]} 45. fxg5+ {[%clk 0:00:23]}  fxg5 {[%clk 0:00:53]} 46. Ne5 {[%clk 0:00:22]}  Rf6+ {[%clk 0:00:49]} 47. Kg2 {[%clk 0:00:19]}  Nd5 {[%clk 0:00:47]} 48. Rc6 {[%clk 0:00:18]}  Rxc6 {[%clk 0:00:42]} 49. Nxc6 {[%clk 0:00:19]}  Kg6 {[%clk 0:00:42]} 50. e4 {[%clk 0:00:19]}  Nf4+ {[%clk 0:00:37]} 51. Kf3 {[%clk 0:00:20]}  Nd3 {[%clk 0:00:37]} 52. Ke3 {[%clk 0:00:14]}  Nb2 {[%clk 0:00:37]} 53. d5 {[%clk 0:00:12]}  Nc4+ {[%clk 0:00:37]} 54. Kf3 {[%clk 0:00:08]}  Kf6 {[%clk 0:00:35]} 55. Kg3 {[%clk 0:00:08]}  Nb6 {[%clk 0:00:16]} 56. f4 {[%clk 0:00:08]}  h4+ {[%clk 0:00:14]} 57. Kg4 {[%clk 0:00:08]}  gxf4 {[%clk 0:00:15]} 58. Kxf4 {[%clk 0:00:09]}  Nc4 {[%clk 0:00:14]} 59. e5+ {[%clk 0:00:08]}  Kf7 {[%clk 0:00:13]} 60. Kg4 {[%clk 0:00:08]}  Ne3+ {[%clk 0:00:13]} 61. Kxh4 {[%clk 0:00:08]}  Nxd5 {[%clk 0:00:14]} 62. Kg4 {[%clk 0:00:08]}  Ke6 {[%clk 0:00:14]} 63. Kf3 {[%clk 0:00:08]}  Nc3 {[%clk 0:00:13]} 64. Kf4 {[%clk 0:00:05]}  Ne2+ {[%clk 0:00:12]} 65. Ke4 {[%clk 0:00:05]}  Nc3+ {[%clk 0:00:13]} 66. Kd4 {[%clk 0:00:05]}  Ne2+ {[%clk 0:00:13]} 67. Kc5 {[%clk 0:00:05]}  Nf4 {[%clk 0:00:13]} 68. Kb6 {[%clk 0:00:05]}  Nd5+ {[%clk 0:00:13]} 69. Ka5 {[%clk 0:00:03]}  Nc3 {[%clk 0:00:14]} 70. Kxa6 {[%clk 0:00:03]}  Kd5 {[%clk 0:00:15]} 71. Ka5 {[%clk 0:00:03]}  Kxc6 {[%clk 0:00:15]} 72. e6 {[%clk 0:00:04]}  Nd5 {[%clk 0:00:15]} 73. Ka6 {[%clk 0:00:04]}  Ne7 {[%clk 0:00:15]} 74. Ka5 {[%clk 0:00:05]}  Nc8 {[%clk 0:00:16]} 75. Ka6 {[%clk 0:00:06]}  Ne7 {[%clk 0:00:16]} 76. Ka5 {[%clk 0:00:07]}  Nd5 {[%clk 0:00:16]} 77. Ka6 {[%clk 0:00:08]}  Nxb4+ {[%clk 0:00:16]} 78. Ka5 {[%clk 0:00:08]}  Nd5 {[%clk 0:00:17]} 79. e7 {[%clk 0:00:09]}  Nxe7 {[%clk 0:00:17]} 80. Kb4 {[%clk 0:00:10]}  Nd5+ {[%clk 0:00:18]} 81. Ka5 {[%clk 0:00:10]}  Kc5 {[%clk 0:00:18]} 82. Ka6 {[%clk 0:00:10]}  b4 {[%clk 0:00:19]} 83. Kb7 {[%clk 0:00:11]}  b3 {[%clk 0:00:20]} 84. Kc8 {[%clk 0:00:12]}  b2 {[%clk 0:00:20]} 85. Kd7 {[%clk 0:00:13]}  b1=Q {[%clk 0:00:21]} 86. Ke6 {[%clk 0:00:14]}  Qg6+ {[%clk 0:00:21]} 87. Ke5 {[%clk 0:00:15]}  Nb4 {[%clk 0:00:20]} 88. Kf4 {[%clk 0:00:15]}  Kd4 {[%clk 0:00:19]} 89. Kf3 {[%clk 0:00:15]}  Qf5+ {[%clk 0:00:20]} 90. Ke2 {[%clk 0:00:16]}  Qd3+ {[%clk 0:00:20]} 91. Kf2 {[%clk 0:00:17]}  Qe4 {[%clk 0:00:20]} 92. Kg3 {[%clk 0:00:17]}  Qf5 {[%clk 0:00:20]} 93. Kg2 {[%clk 0:00:17]}  Qf4 {[%clk 0:00:21]} 94. Kh3 {[%clk 0:00:18]}  Qg5 {[%clk 0:00:21]} 95. Kh2 {[%clk 0:00:18]}  Ke3 {[%clk 0:00:22]} 96. Kh1 {[%clk 0:00:19]}  Kf2 {[%clk 0:00:22]} 97. Kh2 {[%clk 0:00:20]}  Qh4# {[%clk 0:00:23]} 0-1


[Site "https://www.chess.com"]

[Event "Titled Tuesday Blitz October 25 Late 2022"]
[White "Zhigalko, Sergei"]
[Black "Machidon, Cristi"]
[WhiteFideId "13502956"]
[BlackFideId "13904590"]
[WhiteElo "2662"]
[BlackElo "2312"]
[Result "1-0"]
[Round "05"]
[TimeControl "180+1"]
[Date "2022.10.26"]
[WhiteClock "0:00:10"]
[BlackClock "0:00:08"]

1. e4 {[%clk 0:03:00]}  c6 {[%clk 0:03:00]} 2. d4 {[%clk 0:03:00]}  d5 {[%clk 0:03:01]} 3. e5 {[%clk 0:03:01]}  Bf5 {[%clk 0:03:01]} 4. Nf3 {[%clk 0:03:01]}  e6 {[%clk 0:03:01]} 5. Be2 {[%clk 0:03:02]}  Ne7 {[%clk 0:02:58]} 6. O-O {[%clk 0:03:02]}  c5 {[%clk 0:02:58]} 7. dxc5 {[%clk 0:03:00]}  Nec6 {[%clk 0:02:58]} 8. Be3 {[%clk 0:02:54]}  Nd7 {[%clk 0:02:57]} 9. c4 {[%clk 0:02:53]}  dxc4 {[%clk 0:02:56]} 10. Na3 {[%clk 0:02:54]}  Bxc5 {[%clk 0:02:49]} 11. Nxc4 {[%clk 0:02:53]}  O-O {[%clk 0:02:46]} 12. Qc1 {[%clk 0:02:53]}  Bxe3 {[%clk 0:02:13]} 13. Qxe3 {[%clk 0:02:54]}  Nb6 {[%clk 0:02:14]} 14. Nd6 {[%clk 0:02:48]}  Qe7 {[%clk 0:02:12]} 15. Rad1 {[%clk 0:02:42]}  Bg6 {[%clk 0:02:09]} 16. Nd4 {[%clk 0:02:30]}  Nxd4 {[%clk 0:02:05]} 17. Qxd4 {[%clk 0:02:24]}  Rad8 {[%clk 0:01:54]} 18. Bf3 {[%clk 0:02:22]}  Rd7 {[%clk 0:01:53]} 19. a4 {[%clk 0:02:16]}  Bc2 {[%clk 0:01:36]} 20. Ra1 {[%clk 0:01:53]}  Nc8 {[%clk 0:01:29]} 21. Nxc8 {[%clk 0:01:18]}  Rxc8 {[%clk 0:01:30]} 22. Qxa7 {[%clk 0:01:19]}  Qb4 {[%clk 0:01:13]} 23. a5 {[%clk 0:01:05]}  g5 {[%clk 0:00:47]} 24. a6 {[%clk 0:00:56]}  Be4 {[%clk 0:00:46]} 25. Qe3 {[%clk 0:00:21]}  Bxf3 {[%clk 0:00:30]} 26. Qxg5+ {[%clk 0:00:20]}  Kf8 {[%clk 0:00:30]} 27. a7 {[%clk 0:00:17]}  b5 {[%clk 0:00:19]} 28. gxf3 {[%clk 0:00:16]}  Ra8 {[%clk 0:00:19]} 29. Kh1 {[%clk 0:00:11]}  Rdxa7 {[%clk 0:00:07]} 30. Rxa7 {[%clk 0:00:10]}  Rxa7 {[%clk 0:00:08]} 31. Qd8+ {[%clk 0:00:10]} 1-0


[Site "https://www.chess.com"]